bitfinex/quotes_SOLUSD_20260305
["timestamp","ask_amount","ask_price","bid_price","bid_amount"]
[1772743010470,0.69051951,89.447,89.407,0.28432314]
[1772743010978,0.69051951,89.447,89.406,11.18493166]
[1772743011565,0.69051951,89.439,89.394,0.69755646]
[1772743012748,4.21804553,89.44,89.394,11.88390636]
[1772743012749,0.69051951,89.437,89.394,11.88390636]
[1772743013470,0.69051951,89.437,89.394,11.1863499]
[1772743013854,0.69051951,89.437,89.394,11.88390636]
[1772743014757,0.69051951,89.435,89.394,0.69755646]
[1772743015967,0.69051951,89.435,89.39,0.14216157]
[1772743016468,0.69051951,89.429,89.388,8.23921267]
[1772743017176,0.69051951,89.427,89.389,0.69755646]
[1772743018264,0.69051951,89.427,89.39,0.69755646]
[1772743019066,0.69051951,89.425,89.388,7.54165621]
[1772743020155,0.69051951,89.425,89.389,0.64445994]
[1772743020360,11.18243016,89.426,89.39,0.64445994]
[1772743020760,0.62425636,89.425,89.39,0.64445994]
[1772743021161,0.62425636,89.423,89.389,0.28432314]
[1772743021463,0.62425636,89.423,89.391,0.64445994]
[1772743022374,0.62425636,89.459,89.391,0.92878308]
[1772743022580,0.62425636,89.459,89.398,0.64445994]
[1772743023482,4.21804553,89.47,89.401,0.64445994]
[1772743023483,0.62425636,89.457,89.401,0.64445994]
[1772743024680,0.62425636,89.455,89.404,0.64445994]
[1772743027284,0.62425636,89.453,89.407,0.64445994]
[1772743028778,0.62425636,89.451,89.41,0.64445994]
[1772743031316,0.62425636,89.449,89.412,0.64445994]
[1772743033391,0.62425636,89.447,89.414,0.64445994]
[1772743035294,11.17967981,89.448,89.414,0.64445994]
[1772743035493,11.80343625,89.452,89.416,0.64445994]
[1772743035793,0.62425636,89.451,89.416,0.64445994]
[1772743036587,11.1779176,89.463,89.417,0.64445994]
[1772743036796,0.62425636,89.462,89.417,0.64445994]
[1772743037392,11.17805524,89.461,89.419,0.92878308]
[1772743037604,11.17805524,89.461,89.42,0.64445994]
[1772743038485,11.8023116,89.461,89.422,0.92878308]
[1772743038688,0.62425636,89.46,89.423,0.64445994]
[1772743039887,0.62425636,89.46,89.421,11.18305543]
[1772743040074,0.62425636,89.46,89.422,0.64445994]
[1772743042486,0.62425636,89.458,89.424,0.64445994]
[1772743042684,0.62425636,89.458,89.42,0.64445994]
[1772743043587,0.62425636,89.458,89.419,11.18330556]
[1772743044295,0.62425636,89.458,89.413,11.82849696]
[1772743044501,0.62425636,89.456,89.413,11.82849696]
[1772743045213,0.62425636,89.456,89.413,11.18403702]
[1772743045412,0.62425636,89.456,89.414,0.64445994]
[1772743045714,0.62425636,89.454,89.414,0.64445994]
[1772743046986,0.62425636,89.454,89.416,0.64445994]
[1772743048410,39.12669222,89.453,89.416,0.64445994]
[1772743048592,0.65016559,89.452,89.416,0.64445994]
[1772743049687,0.65016559,89.452,89.406,0.28432314]
[1772743049897,0.66496446,89.459,89.407,0.6331975]
[1772743050095,0.66496446,89.465,89.417,0.6331975]
[1772743050302,0.66496446,89.479,89.417,0.6331975]
[1772743050487,0.66496446,89.477,89.42,0.6331975]
[1772743051814,0.66496446,89.475,89.423,0.6331975]
[1772743054621,0.66496446,89.473,89.425,0.6331975]
[1772743055995,0.66496446,89.469,89.425,0.6331975]
[1772743056687,11.17718066,89.468,89.425,0.6331975]
[1772743056896,0.66496446,89.467,89.425,0.6331975]
[1772743058916,0.66496446,89.465,89.425,0.6331975]
[1772743059513,0.66496446,89.465,89.426,0.6331975]
[1772743060805,0.66496446,89.463,89.426,0.6331975]
[1772743061141,0.66496446,89.47,89.428,0.28432314]
[1772743061436,0.66496446,89.47,89.429,0.6331975]
[1772743063547,0.66496446,89.468,89.431,0.6331975]
[1772743065650,0.66496446,89.466,89.433,0.6331975]
[1772743066519,0.66496446,89.466,89.428,0.6331975]
[1772743067420,0.66496446,89.464,89.429,11.18205503]
[1772743067637,0.66496446,89.464,89.43,0.6331975]
[1772743070740,0.66496446,89.462,89.432,0.6331975]
[1772743074142,11.17805524,89.461,89.432,0.6331975]
[1772743074343,0.66496446,89.46,89.432,0.6331975]
[1772743074532,0.66496446,89.46,89.414,6.54484234]
[1772743074533,0.66496446,89.459,89.417,0.6331975]
[1772743074729,0.66496446,89.439,89.414,3.73826287]
[1772743074931,0.66496446,89.429,89.387,11.18730911]
[1772743075237,0.66496446,89.429,89.388,0.28432314]
[1772743075442,0.66496446,89.429,89.387,11.18730911]
[1772743075745,0.66496446,89.429,89.388,0.28432314]
[1772743076635,0.66496446,89.427,89.388,0.28432314]
[1772743076838,0.66496446,89.427,89.391,0.37105557]
[1772743078751,0.66496446,89.425,89.393,0.36997465]
[1772743080730,11.18268026,89.424,89.395,0.36838099]
[1772743081630,0.64365655,89.431,89.396,0.36786161]
[1772743082839,0.64365655,89.429,89.399,0.36734727]
[1772743083964,0.64365655,89.478,89.405,4.82477569]
[1772743084129,0.64365655,89.513,89.409,0.36634451]
[1772743084329,0.64365655,89.512,89.423,4.82477569]
[1772743084535,0.64365655,89.499,89.429,0.36634451]
[1772743085041,0.64365655,89.497,89.431,0.36634451]
[1772743085434,0.64365655,89.489,89.431,0.36634451]
[1772743086674,0.64365655,89.495,89.436,4.82477569]
[1772743086971,0.64365655,89.493,89.441,0.36536181]
[1772743089369,0.64365655,89.491,89.444,0.36392008]
[1772743091658,27.93483362,89.494,89.447,0.36298007]
[1772743091659,0.64365655,89.489,89.447,0.36298007]
[1772743094450,0.64365655,89.487,89.45,0.3616214]
[1772743095839,0.64365655,89.502,89.453,0.36118611]
[1772743096049,0.68608596,89.514,89.466,3.69383402]
[1772743096266,0.68608596,89.514,89.464,4.82477569]
[1772743096267,0.64449644,89.548,89.464,3.69383402]
[1772743096468,0.1,89.55,89.472,0.28432314]
[1772743096469,0.64449644,89.546,89.472,0.28432314]
[1772743096641,0.64449644,89.546,89.479,8.51860971]
[1772743096842,0.64449644,89.546,89.489,4.82477569]
[1772743097048,0.64449644,89.546,89.492,0.28432314]
[1772743097776,0.64449644,89.548,89.5,0.28432314]
[1772743098480,0.64449644,89.548,89.502,5.10909883]
[1772743098777,0.64449644,89.548,89.505,0.14216157]
[1772743099259,0.1,89.55,89.506,0.14216157]
[1772743099460,0.1,89.55,89.509,8.80293285]
[1772743099658,0.1,89.55,89.511,5.10909883]
[1772743100467,0.1,89.55,89.512,39.10090266]
[1772743100656,0.1,89.55,89.513,19.0057282]
[1772743100861,0.64449644,89.549,89.514,13.89647412]
[1772743101051,0.64449644,89.549,89.515,0.28432314]
[1772743102253,0.64449644,89.549,89.515,14.18064202]
[1772743102653,0.64449644,89.547,89.517,0.28432314]
[1772743102864,0.64449644,89.547,89.515,13.89631888]
[1772743103376,0.64449644,89.547,89.515,13.33758049]
[1772743103679,0.64449644,89.539,89.488,11.17458843]
[1772743104058,0.64449644,89.539,89.49,0.28432314]
[1772743104672,0.64449644,89.539,89.492,5.10909883]
[1772743104977,0.64449644,89.537,89.492,4.96693726]
[1772743105175,0.14449644,89.537,89.493,0.4985835]
[1772743105365,0.1,89.55,89.503,0.4985835]
[1772743105366,11.16707054,89.549,89.503,0.4985835]
[1772743105574,0.1,89.55,89.503,0.4985835]
[1772743105973,11.26706519,89.55,89.503,0.4985835]
[1772743106980,0.1,89.55,89.506,0.498817]
[1772743107357,0.64365655,89.549,89.506,0.498817]
[1772743107964,0.64365655,89.539,89.49,11.17440342]
[1772743108177,0.64365655,89.529,89.486,0.49906276]
[1772743108374,0.64365655,89.529,89.485,0.28432314]
[1772743108688,0.58481897,89.519,89.477,0.49953572]
[1772743108859,0.58481897,89.517,89.476,0.28432314]
[1772743109201,39.0982819,89.518,89.461,0.63408021]
[1772743109685,39.0982819,89.518,89.46,11.17812043]
[1772743109686,4.2122385,89.51,89.464,0.63408021]
[1772743110382,39.0982819,89.518,89.464,0.63408021]
[1772743110758,4.2122385,89.51,89.464,0.63408021]
[1772743110966,39.10221318,89.509,89.466,0.63675639]
[1772743111167,0.6068378,89.508,89.466,0.63675639]
[1772743111378,0.6068378,89.499,89.448,0.63675639]
[1772743111583,0.6068378,89.489,89.448,0.63675639]
[1772743112990,0.6068378,89.487,89.45,0.92107953]
[1772743113288,0.6068378,89.487,89.451,0.63675639]
[1772743113904,39.11138922,89.488,89.451,0.63675639]
[1772743113905,11.17468263,89.488,89.451,0.63675639]
[1772743114259,44.68577081,89.514,89.45,0.28432314]
[1772743114260,0.6068378,89.502,89.454,0.63675639]
[1772743115465,0.6068378,89.5,89.457,0.63675639]
[1772743117556,0.6068378,89.498,89.459,0.92107953]
[1772743117756,0.6068378,89.498,89.46,0.63675639]
[1772743120961,55.85594488,89.516,89.461,11.81481163]
[1772743120962,0.6068378,89.496,89.461,11.81481163]
[1772743121157,0.6068378,89.496,89.462,0.63675639]
[1772743121988,0.6068378,89.494,89.462,0.63675639]
[1772743122358,0.6068378,89.494,89.455,0.63675639]
[1772743122675,0.6068378,89.489,89.448,11.17967981]
[1772743123472,0.6068378,89.489,89.441,0.63675639]
[1772743123473,0.6068378,89.489,89.442,11.18031424]
[1772743123665,0.6068378,89.489,89.441,0.63675639]
[1772743123984,0.6068378,89.489,89.441,11.81724231]
[1772743124184,0.6068378,89.487,89.441,11.81724231]
[1772743125578,0.6068378,89.479,89.441,0.63675639]
[1772743125772,0.6068378,89.479,89.437,11.18098722]
[1772743125966,0.6068378,89.479,89.424,27.95643012]
[1772743125967,0.6068378,89.469,89.422,11.18292105]
[1772743126172,0.6068378,89.467,89.422,11.81967744]
[1772743126581,0.6068378,89.467,89.423,0.63675639]
[1772743129583,0.6068378,89.465,89.425,0.63675639]
[1772743130086,0.6068378,89.459,89.418,0.63675639]
[1772743131465,0.6068378,89.457,89.421,0.63675639]
[1772743133573,0.6068378,89.455,89.421,0.63675639]
[1772743133980,0.6068378,89.455,89.417,0.28432314]
[1772743134180,0.6068378,89.449,89.408,0.63675639]
[1772743134670,0.6068378,89.449,89.409,0.63675639]
[1772743135773,0.6068378,89.464,89.411,0.63675639]
[1772743136975,0.6068378,89.459,89.411,0.63675639]
[1772743137676,0.6068378,89.457,89.413,0.92107953]
[1772743137889,0.6068378,89.457,89.414,0.63675639]
[1772743139688,0.60222907,89.455,89.416,0.28432314]
[1772743139994,0.60222907,89.455,89.417,0.61279676]
[1772743140194,55.88090661,89.476,89.417,0.61279676]
[1772743140195,27.94323798,89.468,89.417,0.61279676]
[1772743140370,0.60222907,89.467,89.417,0.61279676]
[1772743141377,0.60222907,89.465,89.419,0.28432314]
[1772743141695,0.60222907,89.465,89.42,0.61279676]
[1772743143674,0.60222907,89.463,89.423,0.61279676]
[1772743146668,0.60222907,89.461,89.426,0.61279676]
[1772743148298,4.2122385,89.45,89.414,11.18385851]
[1772743148466,0.60222907,89.449,89.414,11.18385851]
[1772743148673,0.60222907,89.447,89.407,0.61279676]
[1772743150007,0.60222907,89.447,89.349,61.9]
[1772743150289,0.60222907,89.447,89.34,11.52392871]
[1772743150290,0.60222907,89.419,89.37,0.61279676]
[1772743150696,3.69383402,89.437,89.37,0.61279676]
[1772743150697,0.60222907,89.407,89.37,0.61279676]
[1772743151001,0.60222907,89.407,89.367,11.18981175]
[1772743151002,0.60222907,89.399,89.368,0.28432314]
[1772743151174,0.60222907,89.399,89.365,0.61279676]
[1772743151371,0.60222907,89.399,89.363,0.61279676]
[1772743151580,0.60222907,89.407,89.364,0.61279676]
[1772743152591,0.60222907,89.405,89.366,0.75495833]
[1772743152768,0.60222907,89.405,89.367,0.61279676]
[1772743153165,0.60222907,89.389,89.349,11.1919802]
[1772743153592,0.60222907,89.389,89.35,0.28432314]
[1772743153971,0.60222907,89.379,89.34,0.81279676]
[1772743154290,0.60222907,89.379,89.341,11.19306925]
[1772743154666,0.60222907,89.377,89.34,0.2]
[1772743154871,0.60222907,89.369,89.34,0.2]
[1772743155672,0.60222907,89.369,89.323,0.61279676]
[1772743155871,0.60222907,89.359,89.321,4.12917449]
[1772743156073,0.60222907,89.359,89.322,11.19544562]
[1772743156272,0.60222907,89.349,89.321,4.12917449]
[1772743156690,0.60222907,89.339,89.291,11.19932253]
[1772743157009,0.60222907,89.339,89.302,0.61279676]
[1772743157303,0.60222907,89.329,89.302,0.61279676]
[1772743157472,0.60222907,89.329,89.294,0.61279676]
[1772743159175,0.60222907,89.327,89.294,0.61279676]
[1772743159373,0.60222907,89.327,89.288,0.14216157]
[1772743159596,0.60222907,89.327,89.289,0.61279676]
[1772743160392,0.60222907,89.319,89.276,0.61279676]
[1772743160698,0.60222907,89.319,89.279,0.61279676]
[1772743161400,44.77174897,89.343,89.259,28.00820122]
[1772743161401,11.34450092,89.31,89.271,11.2017284]
[1772743161596,11.34450092,89.29,89.261,0.61279676]
[1772743161771,0.60222907,89.296,89.261,0.61279676]
[1772743162374,0.60222907,89.296,89.255,3.46949162]
[1772743162576,0.60222907,89.289,89.255,3.46949162]
[1772743162793,0.60222907,89.289,89.252,0.61279676]
[1772743163496,0.14216157,89.311,89.233,0.61279676]
[1772743163497,0.60222907,89.279,89.233,0.61279676]
[1772743163997,0.60222907,89.279,89.241,0.61279676]
[1772743164686,0.60222907,89.279,89.241,11.81840853]
[1772743164893,0.60222907,89.279,89.241,0.61279676]
[1772743165596,0.60222907,89.294,89.241,4.82477569]
[1772743165788,0.60222907,89.357,89.247,8.51860971]
[1772743166101,13.94698364,89.308,89.26,0.28432314]
[1772743166683,13.94698364,89.308,89.26,5.10909883]
[1772743167083,0.60222907,89.334,89.264,5.10909883]
[1772743167381,11.19407161,89.333,89.274,0.61279676]
[1772743167781,0.60222907,89.332,89.274,0.61279676]
[1772743168581,0.63812236,89.329,89.274,0.61279676]
[1772743169506,0.63812236,89.319,89.266,0.59543098]
[1772743171580,0.63891397,89.317,89.268,0.91961492]
[1772743171888,0.63891397,89.317,89.269,0.63529178]
[1772743173383,0.63891397,89.335,89.274,4.82477569]
[1772743173585,11.35666384,89.36,89.285,0.63529178]
[1772743173586,0.63891397,89.333,89.285,0.63529178]
[1772743173787,0.63891397,89.333,89.286,0.63529178]
[1772743174189,11.83311089,89.332,89.286,0.63529178]
[1772743175894,11.83311089,89.332,89.289,0.63529178]
[1772743176707,0.63891397,89.331,89.289,0.63529178]
[1772743177106,11.19444755,89.33,89.291,0.63529178]
[1772743177609,0.63891397,89.329,89.291,0.63529178]
[1772743178594,0.63891397,89.329,89.27,0.63529178]
[1772743178798,50.53723027,89.33,89.271,0.63529178]
[1772743178799,0.63891397,89.319,89.271,0.63529178]
[1772743178998,0.63891397,89.319,89.272,0.63529178]
[1772743180188,0.63891397,89.317,89.274,0.63529178]
[1772743180389,0.63891397,89.317,89.275,0.63529178]
[1772743182792,0.63891397,89.315,89.278,0.63529178]
[1772743185112,0.63891397,89.314,89.281,0.63529178]
[1772743186114,0.63891397,89.314,89.28,0.28432314]
[1772743186500,0.63891397,89.314,89.281,0.63529178]
[1772743187615,0.63891397,89.314,89.283,0.63529178]
[1772743187915,0.63891397,89.312,89.283,0.63529178]
[1772743189816,0.63891397,89.31,89.284,11.20021504]
[1772743190194,0.63891397,89.31,89.283,0.63529178]
[1772743190411,0.63891397,89.31,89.28,11.20069453]
[1772743191733,0.63891397,89.308,89.276,0.63529178]
[1772743192033,0.63891397,89.308,89.278,0.91961492]
[1772743192208,0.63891397,89.308,89.279,0.63529178]
[1772743192404,0.63891397,89.308,89.277,11.20109322]
[1772743192705,0.63891397,89.308,89.278,0.28432314]
[1772743193417,4.23627893,89.33,89.249,0.63529178]
[1772743193418,0.63891397,89.306,89.249,0.63529178]
[1772743193603,0.63891397,89.306,89.251,0.63529178]
[1772743193811,0.63891397,89.289,89.237,11.20610546]
[1772743194019,0.63891397,89.289,89.239,1.33693688]
[1772743194699,0.63891397,89.289,89.242,11.20540291]
[1772743194901,0.63891397,89.279,89.239,0.7016451]
[1772743195524,0.63891397,89.277,89.239,11.90739879]
[1772743195824,0.63891397,89.277,89.242,0.63529178]
[1772743195997,11.20096776,89.278,89.242,0.63529178]
[1772743196830,11.83920612,89.284,89.243,0.63529178]
[1772743197507,11.83920612,89.284,89.246,0.63529178]
[1772743198924,11.20029215,89.284,89.246,0.63529178]
[1772743199124,11.1996813,89.289,89.246,0.63529178]
[1772743199502,11.1996813,89.289,89.247,39.21700448]
[1772743199831,11.1996813,89.289,89.249,0.63529178]
[1772743200323,73.17728759,89.32,89.249,0.63529178]
[1772743200324,0.62349204,89.31,89.249,0.63529178]
[1772743201443,0.62349204,89.299,89.249,0.63529178]
[1772743201725,0.62349204,89.289,89.249,0.63529178]
[1772743202326,0.62349204,89.289,89.243,0.28432314]
[1772743202522,0.62349204,89.289,89.244,0.65176635]
[1772743203825,0.62349204,89.287,89.247,0.65176635]
[1772743204727,0.62349204,89.294,89.25,0.65176635]
[1772743204935,11.19858449,89.297,89.25,0.65176635]
[1772743205322,0.62349204,89.296,89.25,0.65176635]
[1772743205835,11.1980566,89.302,89.254,0.65176635]
[1772743206035,0.62349204,89.301,89.254,0.65176635]
[1772743206936,0.62349204,89.299,89.257,0.65176635]
[1772743210245,0.62349204,89.297,89.246,0.65176635]
[1772743210432,0.62349204,89.289,89.242,0.65176635]
[1772743210637,0.62349204,89.289,89.236,0.28432314]
[1772743210840,0.62349204,89.289,89.24,11.40566976]
[1772743211339,0.62349204,89.279,89.24,0.2]
[1772743211640,0.62349204,89.279,89.24,0.85176635]
[1772743212229,0.62349204,89.277,89.243,11.20536064]
[1772743212530,0.62349204,89.277,89.244,0.93608949]
[1772743212737,27.99960944,89.287,89.245,0.65176635]
[1772743212738,11.20053525,89.282,89.245,0.65176635]
[1772743214942,0.62349204,89.286,89.248,0.65176635]
[1772743217848,0.62349204,89.284,89.25,0.65176635]
[1772743219536,0.62349204,89.284,89.241,11.85737812]
[1772743219744,0.62349204,89.284,89.242,0.65176635]
[1772743219929,11.35510029,89.29,89.244,0.65176635]
[1772743219930,0.62349204,89.282,89.244,0.65176635]
[1772743221633,0.62349204,89.282,89.243,11.20536064]
[1772743221840,0.62349204,89.28,89.241,11.20561177]
[1772743222849,0.62349204,89.279,89.24,0.2]
[1772743223454,0.62349204,89.269,89.22,0.65176635]
[1772743223641,0.62349204,89.269,89.221,11.85988999]
[1772743223844,0.62349204,89.269,89.222,0.65176635]
[1772743224135,0.62349204,89.267,89.222,0.65176635]
[1772743224336,0.62349204,89.267,89.223,11.2078724]
[1772743224550,0.62349204,89.267,89.224,0.65176635]
[1772743226839,0.62349204,89.265,89.226,0.65176635]
[1772743228051,0.62349204,89.265,89.227,0.65176635]
[1772743228454,11.2024735,89.266,89.227,0.65176635]
[1772743228657,0.6318992,89.279,89.227,0.65176635]
[1772743228852,11.83286696,89.278,89.229,0.9626988]
[1772743229050,11.83286696,89.278,89.23,0.67837566]
[1772743229358,0.6318992,89.277,89.23,0.67837566]
[1772743231762,4.24018214,89.29,89.232,0.62226776]
[1772743231763,0.64553507,89.275,89.232,0.62226776]
[1772743236864,0.64553507,89.273,89.234,0.62226776]
[1772743237056,0.6737,89.277,89.235,0.62226776]
[1772743237372,0.64553507,89.291,89.237,0.41879603]
[1772743238251,0.64553507,89.286,89.237,0.41879603]
[1772743239070,0.64553507,89.284,89.24,0.419832]
[1772743240857,0.64553507,89.282,89.243,0.42186833]
[1772743242976,0.64553507,89.282,89.275,0.1007843]
[1772743243165,39.20119171,89.283,89.253,11.20410518]
[1772743243166,0.64553507,89.28,89.253,11.20410518]
[1772743243475,0.64553507,89.28,89.254,0.42483087]
[1772743243771,0.64553507,89.297,89.255,0.42483087]
[1772743246669,0.64553507,89.295,89.257,0.28432314]
[1772743247857,11.19757308,89.306,89.258,0.42862839]
[1772743248052,11.19700214,89.31,89.266,0.42862839]
[1772743248456,27.98677887,89.328,89.266,0.42862839]
[1772743248652,0.64553507,89.326,89.269,0.42954856]
[1772743251280,0.64553507,89.324,89.272,0.43224517]
[1772743254455,4.24018214,89.32,89.273,11.2015951]
[1772743254785,0.64553507,89.319,89.272,0.43224517]
[1772743254958,0.64553507,89.319,89.273,11.2015951]
[1772743255283,0.64553507,89.319,89.274,0.43488967]
[1772743256687,39.18583039,89.318,89.275,11.20134416]
[1772743256986,0.64553507,89.317,89.276,0.43657659]
[1772743258385,0.64553507,89.317,89.261,0.43822635]
[1772743258585,0.64553507,89.317,89.263,0.43822635]
[1772743258964,0.64553507,89.315,89.266,0.43822635]
[1772743260274,0.65447643,89.289,89.234,0.43910359]
[1772743260488,39.18670786,89.316,89.244,0.43916953]
[1772743260663,0.65447643,89.315,89.244,0.43916953]
[1772743260864,0.65447643,89.309,89.247,0.43916953]
[1772743262864,0.65447643,89.307,89.25,0.43929974]
[1772743263388,0.65447643,89.299,89.25,0.43929974]
[1772743264582,0.65447643,89.299,89.248,11.20473287]
[1772743264983,0.65447643,89.297,89.248,0.43944231]
[1772743266061,0.65447643,89.295,89.25,0.43950615]
[1772743269095,0.65447643,89.293,89.25,0.43950615]
[1772743269296,0.65447643,89.293,89.245,0.28432314]
[1772743269466,0.65447643,89.293,89.247,0.28432314]
[1772743269670,0.65447643,89.293,89.248,0.43978279]
[1772743270372,0.65447643,89.289,89.241,0.43985517]
[1772743270574,0.65447643,89.289,89.183,44.85156427]
[1772743270575,0.65447643,89.289,89.225,0.43985517]
[1772743271366,4.24018214,89.29,89.228,0.43991377]
[1772743271367,0.65447643,89.287,89.228,0.43991377]
[1772743272766,0.65447643,89.285,89.23,0.43997279]
[1772743273767,0.65447643,89.283,89.233,0.4400435]
[1772743275781,0.65447643,89.281,89.236,0.44015614]
[1772743278200,0.65447643,89.279,89.238,0.28432314]
[1772743278499,0.65447643,89.279,89.239,0.44031745]
[1772743280379,0.65447643,89.277,89.241,0.44045076]
[1772743282683,0.65447643,89.275,89.243,0.44055596]
[1772743283088,11.20078784,89.28,89.244,0.44055596]
[1772743283699,0.65447643,89.279,89.244,0.44055596]
[1772743284084,0.65447643,89.279,89.238,0.72492843]
[1772743284395,0.65447643,89.279,89.239,11.2058629]
[1772743285302,0.65447643,89.277,89.24,0.44070475]
[1772743287793,0.65447643,89.275,89.242,0.44080214]
[1772743288807,0.68207435,89.273,89.244,0.4408958]
[1772743290295,0.68207435,89.273,89.238,0.441048]
[1772743290496,0.68207435,89.273,89.239,0.72537114]
[1772743290695,0.68207435,89.273,89.24,0.441048]
[1772743290892,0.66672294,89.271,89.212,0.441048]
[1772743291099,0.66672294,89.271,89.213,4.82477569]
[1772743291393,0.66672294,89.271,89.214,0.4410919]
[1772743292800,39.20602204,89.272,89.215,39.231071]
[1772743292801,11.20197154,89.27,89.215,39.231071]
[1772743293010,0.66672294,89.269,89.216,0.44114801]
[1772743293788,0.66672294,89.269,89.218,0.44119148]
[1772743294021,0.66672294,89.269,89.224,0.44119148]
[1772743295809,0.66672294,89.267,89.226,0.44129029]
[1772743295984,0.66672294,89.267,89.211,0.44129029]
[1772743296188,0.66672294,89.259,89.211,0.44129029]
[1772743298096,0.66672294,89.257,89.204,0.44137677]
[1772743298284,0.66672294,89.257,89.211,0.44142011]
[1772743298689,0.66672294,89.257,89.212,0.44142011]
[1772743299317,0.66672294,89.257,89.213,0.44146395]
[1772743300211,0.66672294,89.255,89.216,0.44146395]
[1772743301792,0.66672294,89.255,89.209,11.2095217]
[1772743302001,0.66672294,89.255,89.212,0.44154917]
[1772743302302,0.66672294,89.253,89.214,0.72592494]
[1772743303006,0.66672294,89.253,89.215,0.4416018]
[1772743305916,0.66672294,89.251,89.217,0.44172035]
[1772743306213,0.66672294,89.251,89.21,0.2]
[1772743307313,0.66672294,89.249,89.21,0.2]
[1772743307618,0.66672294,89.249,89.211,0.44180804]
[1772743309314,0.66672294,89.249,89.21,0.2]
[1772743310718,0.66672294,89.247,89.21,0.2]
[1772743310903,0.66672294,89.247,89.211,0.44191843]
[1772743312726,39.21744391,89.246,89.211,0.44191843]
[1772743312899,0.66672294,89.245,89.212,11.65124501]
[1772743313095,0.66672294,89.245,89.212,11.20925436]
[1772743313323,0.66672294,89.245,89.21,0.2]
[1772743314105,0.66672294,89.245,89.21,0.64202743]
[1772743314419,0.66672294,89.245,89.211,0.44206372]
[1772743314900,11.20523508,89.244,89.213,0.44206372]
[1772743315100,0.66672294,89.243,89.213,0.44206372]
[1772743318919,0.66672294,89.243,89.215,0.4422262]
[1772743318920,11.2054862,89.242,89.215,0.4422262]
[1772743319098,0.66672294,89.241,89.215,0.4422262]
[1772743319807,0.66672294,89.241,89.21,0.2]
[1772743320118,0.66672294,89.241,89.211,0.44181585]
[1772743320321,11.2054862,89.242,89.211,0.44181585]
[1772743320532,11.83682213,89.242,89.211,0.44181585]
[1772743321035,11.83682213,89.242,89.213,0.44135284]
[1772743321216,0.63133593,89.26,89.214,0.44135284]
[1772743321542,0.63133593,89.284,89.233,0.44089296]
[1772743321715,0.63133593,89.284,89.234,0.44089296]
[1772743322917,0.63133593,89.282,89.236,0.44043711]
[1772743324031,0.63133593,89.282,89.236,0.43998773]
[1772743325030,11.19933699,89.291,89.243,0.43955389]
[1772743325231,11.83067292,89.291,89.243,0.43955389]
[1772743325410,0.63133593,89.29,89.243,0.43955389]
[1772743327120,0.63133593,89.288,89.245,0.28432314]
[1772743327326,0.63133593,89.288,89.246,0.43824829]
[1772743328918,0.63133593,89.269,89.217,0.43782332]
[1772743329334,0.63133593,89.267,89.22,0.43739912]
[1772743330321,0.63133593,89.267,89.203,8.51860971]
[1772743330322,0.63133593,89.265,89.206,11.64696138]
[1772743330520,0.63133593,89.265,89.21,11.84645003]
[1772743330827,0.63133593,89.27,89.212,0.43697884]
[1772743331028,0.63133593,89.27,89.222,0.43697884]
[1772743332614,39.20733961,89.269,89.223,11.2078724]
[1772743332814,0.63133593,89.268,89.225,0.43616355]
[1772743335542,0.63133593,89.266,89.227,0.43497172]
[1772743336743,0.63133593,89.264,89.228,11.64183579]
[1772743337644,0.63133593,89.271,89.23,0.43420294]
[1772743338744,0.63133593,89.286,89.233,0.4338308]
[1772743338939,0.63133593,89.284,89.236,0.4338308]
[1772743340828,0.63133593,89.282,89.239,0.43308839]
[1772743341448,0.63133593,89.282,89.234,28.01622699]
[1772743341449,0.63133593,89.282,89.235,0.43271955]
[1772743342828,0.63133593,89.28,89.236,11.20623963]
[1772743344254,0.63133593,89.28,89.237,0.43162981]
[1772743344753,0.63133593,89.286,89.245,0.43162981]
[1772743345050,0.63133593,89.286,89.246,0.43162981]
[1772743346846,0.63133593,89.284,89.249,0.43093532]
[1772743348857,0.66755545,89.282,89.252,0.42990948]
[1772743350946,0.66814693,89.28,89.254,0.28432314]
[1772743351162,0.66814693,89.28,89.255,0.42891385]
[1772743351552,11.20002665,89.286,89.255,0.42891385]
[1772743351963,11.86817358,89.286,89.255,0.42891385]
[1772743352145,0.66814693,89.285,89.255,0.42891385]
[1772743352460,7.99795143,89.292,89.255,0.42891385]
[1772743352756,7.99795143,89.292,89.264,0.42827144]
[1772743352956,7.99795143,89.292,89.266,0.42827144]
[1772743354157,0.66814693,89.291,89.265,11.202599]
[1772743355951,0.66814693,89.291,89.265,11.62993935]
[1772743356973,0.66814693,89.289,89.265,11.62993935]
[1772743358666,0.66814693,89.287,89.265,11.62993935]
[1772743360057,11.19996416,89.286,89.258,0.42616993]
[1772743360260,0.66814693,89.285,89.246,0.42589212]
[1772743361602,0.66814693,89.285,89.212,0.42561729]
[1772743361774,0.66814693,89.285,89.222,0.42561729]
[1772743362371,0.66814693,89.279,89.223,11.2078724]
[1772743362752,0.66814693,89.279,89.224,0.28432314]
[1772743363053,0.66814693,89.279,89.225,0.42533535]
[1772743364377,0.66814693,89.277,89.227,0.42478358]
[1772743366459,0.66814693,89.275,89.229,0.42424507]
[1772743368160,0.66814693,89.275,89.216,0.42399183]
[1772743369671,0.66814693,89.275,89.215,0.28432314]